Cogmind - Beta 13 *** ADVENTURER MODE // 2024.07.04 @ 16:37:26 Player: Dmitry Result: Destroyed by 2Q-K9G(R) with Subdweller Laser Performance ------------- Evolutions (0) 0 Regions Visited (2) 400 Robots Destroyed (36) 180 Value Destroyed (749) 749 Prototype IDs (13) 260 Alien Tech Used (0) 0 Bonus (0) 0 TOTAL SCORE: 1589 Bonus ------- None Cogmind --------- Core Integrity 0/250 Matter 300/300 Energy 245/250 System Corruption 4% Temperature Cool (6) Movement Core (450) Ox8 Location -10/Subcaves Parts ------- > --- POWER (1) -------- Ion Engine > --- PROPULSION (2) --- (None) > --- UTILITY (2) ------ Scrap Shield > --- WEAPON (2) ------- Makeshift Sword > --- INVENTORY (5) ---- Flightbrick Peak State ------------ > --- POWER ------------ Ion Engine > --- PROPULSION ------- Subdweller Monowheel > --- UTILITY ---------- Scrap Shield > --- WEAPON ----------- Heavy Riot Gun Makeshift Sword > --- INVENTORY -------- Flightbrick [Rating: 18] Favorites ----------- Power Ion Engine Engine Ion Engine Propulsion Wheel Wheel Wheel Utility Scrap Shield Storage Huge Storage Unit Processor Signal Interpreter Protection Scrap Shield Weapon Heavy Riot Gun Energy Gun Heavy Riot Gun Ballistic Gun Light Assault Rifle Slashing Weapon Makeshift Sword Build | -11 -10 -10 ------- Run | Yrd Mat Sub Slots Evolved . | . . . Power . | . . . Propulsion . | . . . Utility . | . . . Weapon . | . . . Parts Attached 24 | 7 5 12 Power 4 | 1 1 2 Engine 4 | 1 1 2 Core . | . . . Reactor . | . . . Propulsion 3 | 2 . 1 Treads . | . . . Leg . | . . . Wheel 3 | 2 . 1 Hover . | . . . Flight . | . . . Utility 4 | 1 2 1 Device . | . . . Storage 2 | 1 1 . Processor 1 | . 1 . Hackware . | . . . Protection 1 | . . 1 Artifact . | . . . Weapon 13 | 3 2 8 Energy Gun 8 | 1 2 5 Energy Cannon . | . . . Ballistic Gun 2 | 2 . . Ballistic Cannon . | . . . Launcher . | . . . Special Weapon . | . . . Impact Weapon . | . . . Slashing Weapon 3 | . . 3 Piercing Weapon . | . . . Special Melee Weapon . | . . . Unidentified Prototypes . | . . . Parts Lost 3 | . . 3 Power . | . . . Propulsion 2 | . . 2 Utility . | . . . Weapon 1 | . . 1 Highest Loss Streak 2 | . . 2 To Critical Strikes . | . . . Average Slot Usage (%) 65 | . 96 62 Engine 14 | . 14 14 Wheel 7 | . 28 4 Storage 1 | . 14 . Processor 1 | . 10 . Protection 12 | . . 13 Energy Gun 20 | . 21 20 Slashing Weapon 6 | . . 7 Naked Turns . | . . . Heaviest Build 92 | 13 91 92 Greatest Support 20 | 20 20 20 Greatest Overweight (x) 9 | . 4 9 Average Overweight (x) 4 | . 2 4 Largest Inventory Capacity 25 | 8 25 25 Average Capacity 7 | 7 21 5 Most Carried 14 | 2 8 14 Average Carried 4 | . 3 4 Final Capacity 25 | 8 25 5 Final Carried 8 | 2 8 4 Class Distribution -------------------- 100% | Mutant Dominant Class ---------------- Mutant | -10/Materials Mutant | -10/Subcaves Resources | -11 -10 -10 ----------- Run | Yrd Mat Sub Matter Collected 608 | 334 154 120 Remotely . | . . . Salvage Created 1149 | 217 462 470 Parts 57 | 11 22 24 Haulers Intercepted . | . . . Recyclers Shooed 1 | . 1 . Parts Field Recycled . | . . . Retrieved Matter . | . . . Parts Self-Destructed 8 | . . 8 Prevented 3 | . . 3 Kills | -11 -10 -10 ------- Run | Yrd Mat Sub Combat Hostiles Destroyed 23 | . 10 13 Guns 21 | . 10 11 AOE 1 | . . 1 Classes Destroyed 8 | 3 3 2 Worker 3 | 2 1 . Tunneler 4 | 4 . . Recycler 1 | 1 . . Turret 2 | . . 2 Watcher 3 | . 3 . Swarmer 10 | . 3 7 Grunt 7 | . 7 . Subdweller 6 | . . 6 Best Kill Streak 6 | 4 3 6 Combat Bots Only 4 | . 3 4 Max Kills in Single Turn 2 | 1 1 2 Gunslinging 1 | . . 1 Exploded 1 | . . 1 Melee . | . . . Uniques/NPCs Destroyed . | . . . Combat | -11 -10 -10 -------- Run | Yrd Mat Sub Hostile Shots Fired 140 | . 45 95 Missed 50 | . 13 37 Damage Taken 1157 | . 265 892 Core 260 | . 80 180 Absorbed by Shields . | . . . Ignored by Resistances 258 | . 84 174 Core Remaining (%) 100 | 100 . . Volleys Fired 85 | 16 37 32 Largest 2 | 2 2 2 Hottest 110 | 40 90 110 Shots Fired 170 | 32 74 64 Gun 170 | 32 74 64 Cannon . | . . . Launcher . | . . . Special . | . . . Kinetic 84 | 32 52 . Thermal . | . . . Explosive . | . . . Electromagnetic 86 | . 22 64 Robot Hit Streak 16 | 14 15 16 Robot Miss Streak 4 | 1 4 3 Penetration Max . | . . . Secondary Targets 6 | . 3 3 Max Gunslinging Chain 1 | . 1 1 Shots Hit Robots 123 | 23 48 52 Core Hits 60 | 8 24 28 Critical Kills . | . . . Critical Parts Destroyed . | . . . Critical Strikes . | . . . Melee Attacks 71 | . . 71 Impact . | . . . Slashing 71 | . . 71 Piercing . | . . . Sneak Attacks . | . . . Combat Hostiles . | . . . Follow-up Attacks . | . . . Damage Inflicted 1783 | 265 634 884 Guns 1696 | 265 592 839 Cannons . | . . . Explosions 78 | . 33 45 Melee . | . . . Ramming 9 | . 9 . Kinetic 616 | 265 351 . Thermal 78 | . 33 45 Explosive . | . . . Electromagnetic 1080 | . 241 839 Impact . | . . . Slashing . | . . . Piercing . | . . . Highest Corruption 4 | . . 4 Average Corruption 4 | . . 4 Corruption Purged . | . . . Corruption Blocked . | . . . Overload Shots . | . . . Overflow Damage . | . . . Projectiles . | . . . Explosions . | . . . Melee . | . . . Knockbacks 1 | . 1 . Impact 1 | . 1 . Kinetic . | . . . Secondary . | . . . Self-Inflicted Damage 4 | . 4 . Shots . | . . . Rammed 1 | . 1 . Targets Rammed 1 | . 1 . Kicked . | . . . Crushed . | . . . Highest Temperature 150 | . 150 12 Average Temperature 39 | . 50 4 Received Heat Transfer 363 | . 141 222 Siege Activations . | . . . Robots Corrupted 2 | . . 2 Combat Hostiles 1 | . . 1 Parts Fried 5 | . 2 3 Impact Corruptions . | . . . Robots Melted . | . . . Combat Hostiles . | . . . Parts Melted . | . . . Heat Transferred . | . . . Parts Sabotaged . | . . . Parts Stolen . | . . . Parts Stripped . | . . . Power Chain Reactions 2 | . 1 1 Alert | -11 -10 -10 ------- Run | Yrd Mat Sub Peak Influence 167 | 35 167 . Initial 19 | . 19 . Average 78 | 14 86 . Maximum Alert Level . | . . . Low Security (%) 100 | 100 100 . Level 1 . | . . . Level 2 . | . . . Level 3 . | . . . Level 4 . | . . . Level 5 . | . . . High Security . | . . . Max Security . | . . . Squads Dispatched 1 | . 1 . Investigation 1 | . 1 . Extermination . | . . . Reinforcement . | . . . Assault . | . . . Garrison . | . . . Intercept . | . . . Searches Triggered . | . . . Construction Impeded . | . . . Haulers Reinforced . | . . . Active Scanning Responses . | . . . Cargo Convoy Interrupts . | . . . Stealth | -11 -10 -10 --------- Run | Yrd Mat Sub Distress Signals . | . . . Communications Jammed . | . . . Distress Signals . | . . . Times Spotted 56 | . 18 38 Peak Tracking Total 4 | . 4 3 Tactical Retreats 4 | . . 4 Traps | -11 -10 -10 ------- Run | Yrd Mat Sub Traps Triggered 1 | . 1 . Indirectly . | . . . Trap Hack Attempts . | . . . Triggered . | . . . Disarmed . | . . . Reprogrammed . | . . . Reused . | . . . Traps Extracted . | . . . Installed . | . . . Triggered . | . . . Machines | -11 -10 -10 ---------- Run | Yrd Mat Sub Machines Disabled 2 | . . 2 Max in Single Turn 1 | . . 1 Machines Repaired . | . . . Machines Dismantled . | . . . Machines Sabotaged . | . . . Overloaded Fab Kills . | . . . Hacking | -11 -10 -10 --------- Run | Yrd Mat Sub Machines Accessed 7 | . 6 1 Terminals 6 | . 6 . Fabricators . | . . . Repair Stations . | . . . Recycling Units . | . . . Scanalyzers . | . . . Garrison Access . | . . . Total Hacks 19 | . 18 1 Successful 12 | . 11 1 Failed 7 | . 7 . Catastrophic . | . . . Database Lockouts . | . . . Manual 8 | . 8 . Terminals 18 | . 18 . Fabricators . | . . . Repair Stations . | . . . Recycling Units . | . . . Scanalyzers . | . . . Garrison Access . | . . . Terminal Hacks 9 | . 8 1 Prototype ID Bank 2 | . 2 . Branch Access Points 1 | . 1 . Alert Level 1 | . 1 . Hauler Manifests 2 | . 2 . Registered Components 1 | . 1 . Registered Prototypes 1 | . 1 . Derelict Proto ID Bank 1 | . . 1 Fabricator Hacks . | . . . Repair Station Hacks . | . . . Recycling Unit Hacks . | . . . Scanalyzer . | . . . Garrison Access Hacks . | . . . Unauthorized Hacks 3 | . 3 . Terminals 3 | . 3 . Assimilate 1 | . 1 . Botnet 2 | . 2 . Fabricators . | . . . Repair Stations . | . . . Recycling Units . | . . . Scanalyzers . | . . . Garrison Access . | . . . Data Cores Recovered . | . . . Used . | . . . Hacking Detections 5 | . 5 . Full Trace Events . | . . . Feedback Events . | . . . Feedback Blocked . | . . . Robot Schematics Acquired . | . . . Robots Built . | . . . Authchips . | . . . Time . | . . . Total Robot Build Rating . | . . . Part Schematics Acquired . | . . . Parts Built . | . . . Authchips . | . . . Time . | . . . Total Part Build Rating . | . . . Parts Repaired . | . . . Time . | . . . Parts Recycled . | . . . Recycled Matter . | . . . Retrieved Matter . | . . . Retrieved Components . | . . . Parts Scanalyzed . | . . . Part Schematics Acquired . | . . . Parts Damaged . | . . . Bothacking | -11 -10 -10 ------------ Run | Yrd Mat Sub Used RIF Installer . | . . . Robots Hacked . | . . . Non-combat . | . . . Combat . | . . . Robot Hacks Applied . | . . . Relay Couplers Released . | . . . Fabnet Peak Effective % . | . . . Robots Rewired . | . . . Allies Hacked . | . . . Hacks Repelled . | . . . Allies | -11 -10 -10 -------- Run | Yrd Mat Sub Total Allies . | . . . Largest Group . | . . . Highest-Rated Group . | . . . Highest-Rated Ally . | . . . Total Orders . | . . . Ally Attacks . | . . . Total Damage . | . . . Kills . | . . . Allies Corrupted . | . . . Allies Melted . | . . . Intel | -11 -10 -10 ------- Run | Yrd Mat Sub Robot Analysis Total . | . . . Derelict Logs Recovered 2 | . . 2 Drone Launches . | . . . Drone Recoveries . | . . . Exploration | -11 -10 -10 ------------- Run | Yrd Mat Sub Turns Passed 10071 | 128 989 8954 Spaces Moved 3653 | 91 529 3033 Core 1379 | 11 . 1368 Treads . | . . . Legs . | . . . Wheels 2274 | 80 529 1665 Hover . | . . . Flight . | . . . Fastest Speed 50 | 50 80 80 Average Speed 256 | 76 119 285 Slowest Speed 500 | 80 140 500 Overloaded Moves . | . . . Propulsion Burnouts . | . . . Robots Hopped . | . . . Cave-ins Triggered 1 | . . 1 Exploration Rate (%) 59 | 3 78 98 Regions Visited 2 Branch Regions 1 Pre-discovered Areas . | . . . Known Exits Taken 1 | . 1 . Unknown Exits Taken 1 | 1 . . Scrap Searched 4 | . . 4 Spaces Dug 54 | . . 54 Terrain Destroyed 60 | . 2 58 Melee 54 | . . 54 Projectile . | . . . AOE 6 | . 2 4 Terrain Rammed . | . . . Walls Destroyed . | . . . Machines Disabled . | . . . Actions | -11 -10 -10 --------- Run | Yrd Mat Sub Total 4117 | 118 816 3183 Wait 238 | . 234 4 Move 3650 | 90 528 3032 Hop . | . . . Pick Up 21 | 4 8 9 Fast Attach 7 | 5 1 1 Attach 8 | 2 3 3 Detach . | . . . Swap 9 | . 1 8 Drop 15 | 1 3 11 Fire 85 | 16 37 32 Melee 71 | . . 71 Ram 1 | . 1 . Kick . | . . . Crush . | . . . Escape Stasis 1 | . . 1 Rewire . | . . . Trap . | . . . Miscellaneous 11 | . . 11 Route ------- -11/Scrapyard -10/Materials (discovered 5 exits: *Mat x2 / *Min x2 / *Sub) -10/Subcaves (discovered 3 exits: *Mat x2 / [*Rec]) History --------- Turn | Location | Event 7 | -11/Scrapyard | Discovered new exit (range 15) 129 | -11/Scrapyard | Entered Materials 142 | -10/Materials | Identified exit to Mines 301 | -10/Materials | Build established: Mutant 359 | -10/Materials | Discovered new exit (range 8) 386 | -10/Materials | Identified exit to Materials 683 | -10/Materials | Discovered exit to Materials (range 16) 960 | -10/Materials | Discovered new exit (range 6) 1107 | -10/Materials | Identified exit to Subcaves 1118 | -10/Materials | Entered Subcaves 1280 | -10/Subcaves | Discovered new exit (range 11) 1292 | -10/Subcaves | Identified exit to Materials 1445 | -10/Subcaves | Disturbed a concealed Subdweller 1482 | -10/Subcaves | Learned location of 1 exit from Materials 1505 | -10/Subcaves | Discovered exit to Materials (range 7) 2066 | -10/Subcaves | Shifting Twisted Machinery released Sub. Laser 2152 | -10/Subcaves | Shifting Twisted Machinery released Sub. Machine Gun 2187 | -10/Subcaves | Ambushed by Subdwellers from Twisted Machinery 2481 | -10/Subcaves | Learned Materials security intel 2686 | -10/Subcaves | Discovered new exit (range 11) 7224 | -10/Subcaves | Visited 4L-MR0's lab 7256 | -10/Subcaves | Found Flightbrick 10060 | -10/Subcaves | Crushed by falling debris 10061 | -10/Subcaves | Core integrity fell below 50% 10061 | -10/Subcaves | Core integrity fell below 20% 10072 | -10/Subcaves | Ambushed by Subdweller buried in earth 10072 | -10/Subcaves | Destroyed by 2Q-K9G(R) with Subdweller Laser Last Messages --------------- Subatomizers dissect the Seismic Detector. 4L-MR0 mumbles to no one in particular: "Damn Subs sneaking around stealing my stuff." 4L-MR0 mumbles: "I'm surprised some of them are even willing to come in here given their fear of my usual visitors." 4L-MR0 mumbles: "Who knows where that last prototype ended up, probably tossed aside somewhere as if it were useless junk..." Subatomizers dissect the Seismic Detector. Acquired 10 matter. Sub. Monowheel shoots sparks and powers down. Dropped Broken Sub. Monowheel. The lore collection interface (ESC then open Records) is a centralized reference of all the lore you've uncovered throughout all runs. The unstable cave ceiling collapses. [Achievement: Part-time Excavator] The unstable cave ceiling collapses. Crushed by falling debris. [Achievement: Unlikely Earthworm] Hvy. Riot Gun destroyed. System corrupted by crushing effect (+4). Map ----- +----------------------------------------------------+ | ?????????????????????????????????????????????????? | | ?????????????????????????????????????????????????? | | ?????????????????????????????????????????????????? | | ?????????????????????????????????????????????????? | | ?????????????????????????????????????????????????? | | ?????????????????????????????????????????????????? | | ?????????????????????????????????????????????????? | | ?????????????????????????????????????????????????? | | ?????????????????????????????????????????????????? | | ?????????????????????????????????????????????????? | | ?????????????????????????????????????????????????? | | ?????????????????????????????????????????????????? | | ?????????????????????????????????????????????????? | | ?????????????????????????????????????????????????? | | ?????????????????????????????????????????????????? | | ?????????????????????????????????????????????????? | | ?????????????????????????????????????????????????? | | ?????????????????????????????????????????????????? | | ?????????????????????????????????????????????????? | | ?????????????????????????????????????????????????? | | ?????????????????????????????????????????????????? | | ?????????????????????????????????????????????????? | | ?????????????????????????????????????????????????? | | ?????????????????????????????????????????????????? | | ############################?????????????????????? | | # ## ## ## # R@ #?????????????????????? | | ############################?????????????????????? | | ?????????????????????????????????????????????????? | | ?????????????????????????????????????????????????? | | ?????????????????????????????????????????????????? | | ?????????????????????????????????????????????????? | | ?????????????????????????????????????????????????? | | ?????????????????????????????????????????????????? | | ?????????????????????????????????????????????????? | | ?????????????????????????????????????????????????? | | ?????????????????????????????????????????????????? | | ?????????????????????????????????????????????????? | | ?????????????????????????????????????????????????? | | ?????????????????????????????????????????????????? | | ?????????????????????????????????????????????????? | | ?????????????????????????????????????????????????? | | ?????????????????????????????????????????????????? | | ?????????????????????????????????????????????????? | | ?????????????????????????????????????????????????? | | ?????????????????????????????????????????????????? | | ?????????????????????????????????????????????????? | | ?????????????????????????????????????????????????? | | ?????????????????????????????????????????????????? | | ?????????????????????????????????????????????????? | | ?????????????????????????????????????????????????? | +----------------------------------------------------+ Best States ------------- Heat Dissipation 25 Energy Generation 15 Energy Capacity 250 Matter Stores 300 Matter Capacity 300 Sight Range 16 Terrain Scan Density 10 Armor Coverage 800 Resistance: KI 20 Resistance: TH 20 Resistance: EX 20 Resistance: EM 20 Resistance: I 20 Resistance: S 20 Resistance: P 20 Evasion (%) 50 Offensive Hacking 10 Item Schematics ----------------- None Robot Schematics ------------------ None Fabricated ------------ Nothing Alien Tech Used ----------------- None Achievements -------------- Part-time Excavator Power Corrupts Unlikely Earthworm Challenges ------------ None Game ------ Seed PointyGravmagMachine Manual? 0 Play Time 00:34:51 Cumulative 8.1 hours Start 2024.07.04 @ 15:49:43 End 2024.07.04 @ 16:37:26 Sessions 1 Manual Loads 0 Difficulty Adventurer Special Mode None Game No. 12 Rogue 0 Adventurer 12 Explorer 0 Win Type - Total 0 Types 0/0/0/0/0/0/0/0/0 Lore% 18 Gallery% 16 Achievement% 16 Wizard Run 0 Options --------- Layout 0 ASCII 0 Keyboard 0 Movement Arrows Keybinds 0 Fullscreen 2 Font 36/Smallcaps Map View 76x50 Zoom Use 0% Tactical HUD 0 Map Filters NONE Filters NONE Steam 0 RUN: 67e96754-5b34-4829-b44a-cea03be7eb28